Cogmind - Beta 13 @@@ ROGUE MODE // 2024.07.16 @ 15:39:22 Player: Venar246 Result: Destroyed by as-85153 with Assembled Heavy Rifle Performance ------------- Evolutions (0) 0 Regions Visited (4) 800 Robots Destroyed (15) 75 Value Destroyed (439) 439 Prototype IDs (25) 500 Alien Tech Used (0) 0 Bonus (398) 398 TOTAL SCORE: 2212 Bonus ------- Follower Combat Kills 114 Aligned with FarCom 300 Friendly Fire -16 Cogmind --------- Core Integrity 0/250 Matter 284/300 Energy 228/250 System Corruption 0% Temperature Cool (20) Movement Core (550) Ox10 Location -9/Mines Parts ------- > --- POWER (1) -------- Ion Engine > --- PROPULSION (2) --- (None) > --- UTILITY (2) ------ Large Storage Unit > --- WEAPON (2) ------- Beam Cannon Rocket Launcher > --- INVENTORY (15) --- Light Ion Engine Light Ion Engine Light Nuclear Core Aluminum Leg Aluminum Leg Aluminum Leg Large Matter Pod (150) Utility Shielding Hacking Suite EM Pulse Gun Light Assault Rifle Light Assault Rifle Light Assault Rifle Grenade Launcher Field Lobotomy Kit (5) Peak State ------------ > --- POWER ------------ Ion Engine > --- PROPULSION ------- Aluminum Leg Aluminum Leg > --- UTILITY ---------- Large Storage Unit > --- WEAPON ----------- Beam Cannon Light Assault Rifle > --- INVENTORY -------- Light Ion Engine Light Ion Engine Light Nuclear Core Aluminum Leg Aluminum Leg Aluminum Leg Aluminum Leg Aluminum Leg Large Matter Pod Hacking Suite EM Pulse Gun Medium Laser Light Assault Rifle Light Assault Rifle Rocket Launcher [Rating: 8] Favorites ----------- Power Ion Engine Engine Ion Engine Propulsion Aluminum Leg Leg Aluminum Leg Utility Large Storage Unit Storage Large Storage Unit Weapon Light Assault Rifle Energy Gun EM Pulse Gun Energy Cannon Beam Cannon Ballistic Gun Light Assault Rifle Launcher Rocket Launcher Build | -11 -10 -10 -10 -9 ------- Run | Yrd Mat Min Exi Min Slots Evolved . | . . . . . Power . | . . . . . Propulsion . | . . . . . Utility . | . . . . . Weapon . | . . . . . Parts Attached 15 | 6 6 2 . 1 Power 1 | 1 . . . . Engine 1 | 1 . . . . Core . | . . . . . Reactor . | . . . . . Propulsion 6 | 2 3 1 . . Treads . | . . . . . Leg 6 | 2 3 1 . . Wheel . | . . . . . Hover . | . . . . . Flight . | . . . . . Utility 2 | 1 1 . . . Device . | . . . . . Storage 2 | 1 1 . . . Processor . | . . . . . Hackware . | . . . . . Protection . | . . . . . Artifact . | . . . . . Weapon 6 | 2 2 1 . 1 Energy Gun 2 | 2 . . . . Energy Cannon 1 | . . 1 . . Ballistic Gun 2 | . 2 . . . Ballistic Cannon . | . . . . . Launcher 1 | . . . . 1 Special Weapon . | . . . . . Impact Weapon . | . . . . . Slashing Weapon . | . . . . . Piercing Weapon . | . . . . . Special Melee Weapon . | . . . . . Unidentified Prototypes . | . . . . . Parts Lost 4 | . . 2 . 2 Power . | . . . . . Propulsion 3 | . . 1 . 2 Utility . | . . . . . Weapon 1 | . . 1 . . Highest Loss Streak 2 | . . 2 . 2 To Critical Strikes . | . . . . . Average Slot Usage (%) 84 | . 85 84 85 85 Engine 14 | . 14 14 14 14 Leg 27 | . 28 27 28 28 Storage 14 | . 14 14 14 14 Energy Cannon 6 | . . 11 14 14 Ballistic Gun 20 | . 27 16 14 14 Naked Turns . | . . . . . Heaviest Build 33 | 14 33 29 29 29 Greatest Support 20 | 20 20 20 20 20 Greatest Overweight (x) 2 | . 1 2 1 1 Average Overweight (x) . | . . 1 1 1 Largest Inventory Capacity 15 | 8 15 15 15 15 Average Capacity 14 | 7 14 15 15 15 Most Carried 15 | 2 15 15 15 15 Average Carried 12 | . 10 14 14 14 Final Capacity 15 | 8 15 15 15 15 Final Carried 15 | 2 15 15 15 15 Class Distribution -------------------- 100% | Mutant Dominant Class ---------------- Mutant | -10/Materials Mutant | -10/Mines Mutant | -10/Exiles Mutant | -9/Mines Resources | -11 -10 -10 -10 -9 ----------- Run | Yrd Mat Min Exi Min Matter Collected 669 | 155 489 21 . 4 Remotely . | . . . . . Salvage Created 546 | . 489 53 . 4 Parts 35 | . 31 4 . . Haulers Intercepted . | . . . . . Recyclers Shooed 1 | . . 1 . . Parts Field Recycled . | . . . . . Retrieved Matter . | . . . . . Parts Self-Destructed . | . . . . . Prevented . | . . . . . Kills | -11 -10 -10 -10 -9 ------- Run | Yrd Mat Min Exi Min Combat Hostiles Destroyed 14 | . 12 1 . 1 Guns 13 | . 12 . . 1 Cannons 1 | . . 1 . . Classes Destroyed 5 | . 3 1 . 1 Operator 2 | . 2 . . . Swarmer 3 | . 3 . . . Grunt 9 | . 9 . . . Sentry 1 | . . 1 . . Assembled 1 | . . . . 1 Best Kill Streak 3 | . 3 1 . 1 Combat Bots Only 3 | . 3 1 . 1 Max Kills in Single Turn 1 | . 1 1 . 1 Gunslinging . | . . . . . Exploded . | . . . . . Melee . | . . . . . Uniques/NPCs Destroyed . | . . . . . Combat | -11 -10 -10 -10 -9 -------- Run | Yrd Mat Min Exi Min Hostile Shots Fired 100 | . 65 15 . 20 Missed 29 | . 17 5 . 7 Damage Taken 877 | . 516 135 . 226 Core 251 | . 156 21 . 74 Absorbed by Shields . | . . . . . Core Remaining (%) 100 | 100 . . . . Volleys Fired 69 | . 60 3 . 6 Largest 2 | . 2 2 . 2 Hottest 93 | . 90 80 . 93 Shots Fired 138 | . 120 6 . 12 Gun 128 | . 120 3 . 5 Cannon 9 | . . 3 . 6 Launcher 1 | . . . . 1 Special . | . . . . . Kinetic 124 | . 116 3 . 5 Thermal 11 | . 2 3 . 6 Explosive 1 | . . . . 1 Electromagnetic 2 | . 2 . . . Robot Hit Streak 7 | . 7 3 . 7 Robot Miss Streak 6 | . 6 1 . 1 Penetration Max . | . . . . . Secondary Targets . | . . . . . Shots Hit Robots 78 | . 64 4 . 10 Core Hits 35 | 1 26 4 . 4 Critical Kills . | . . . . . Critical Parts Destroyed . | . . . . . Critical Strikes . | . . . . . Melee Attacks . | . . . . . Impact . | . . . . . Slashing . | . . . . . Piercing . | . . . . . Sneak Attacks . | . . . . . Combat Hostiles . | . . . . . Follow-up Attacks . | . . . . . Damage Inflicted 1101 | 16 789 94 . 202 Guns 813 | . 750 24 . 39 Cannons 122 | . . 52 . 70 Explosions 93 | . . . . 93 Melee . | . . . . . Ramming 73 | 16 39 18 . . Kinetic 813 | . 750 24 . 39 Thermal 122 | . . 52 . 70 Explosive 93 | . . . . 93 Electromagnetic . | . . . . . Impact . | . . . . . Slashing . | . . . . . Piercing . | . . . . . Highest Corruption . | . . . . . Average Corruption . | . . . . . Corruption Purged . | . . . . . Corruption Blocked . | . . . . . Overload Shots . | . . . . . Overflow Damage . | . . . . . Projectiles . | . . . . . Explosions . | . . . . . Melee . | . . . . . Knockbacks 1 | . 1 . . . Impact 1 | . 1 . . . Kinetic . | . . . . . Secondary . | . . . . . Self-Inflicted Damage . | . . . . . Shots . | . . . . . Rammed . | . . . . . Targets Rammed 21 | 3 11 6 . 1 Kicked 21 | 3 11 6 . 1 Crushed . | . . . . . Highest Temperature 100 | . 60 67 . 100 Average Temperature 23 | . 11 28 . 46 Received Heat Transfer 285 | . 222 63 . . Siege Activations . | . . . . . Robots Corrupted . | . . . . . Combat Hostiles . | . . . . . Parts Fried . | . . . . . Impact Corruptions . | . . . . . Robots Melted . | . . . . . Combat Hostiles . | . . . . . Parts Melted . | . . . . . Heat Transferred 259 | . . 111 . 148 Parts Sabotaged . | . . . . . Parts Stolen . | . . . . . Parts Stripped . | . . . . . Power Chain Reactions . | . . . . . Alert | -11 -10 -10 -10 -9 ------- Run | Yrd Mat Min Exi Min Peak Influence 233 | . 233 191 . . Initial 57 | . . 57 . . Average 56 | . 83 36 . . Maximum Alert Level 1 | . 1 . . . Low Security (%) 97 | 100 95 100 . 100 Level 1 2 | . 4 . . . Level 2 . | . . . . . Level 3 . | . . . . . Level 4 . | . . . . . Level 5 . | . . . . . High Security . | . . . . . Max Security . | . . . . . Squads Dispatched 3 | . 3 . . . Investigation 1 | . 1 . . . Extermination . | . . . . . Reinforcement 2 | . 2 . . . Assault . | . . . . . Garrison . | . . . . . Intercept . | . . . . . Searches Triggered . | . . . . . Construction Impeded . | . . . . . Haulers Reinforced . | . . . . . Active Scanning Responses . | . . . . . Cargo Convoy Interrupts . | . . . . . Stealth | -11 -10 -10 -10 -9 --------- Run | Yrd Mat Min Exi Min Distress Signals 2 | . 2 . . . Communications Jammed . | . . . . . Distress Signals . | . . . . . Times Spotted 44 | . 29 7 . 8 Peak Tracking Total 6 | . 4 4 . 6 Tactical Retreats 3 | . 3 . . . Traps | -11 -10 -10 -10 -9 ------- Run | Yrd Mat Min Exi Min Traps Triggered 1 | . 1 . . . Indirectly . | . . . . . Trap Hack Attempts . | . . . . . Triggered . | . . . . . Disarmed . | . . . . . Reprogrammed . | . . . . . Reused . | . . . . . Traps Extracted . | . . . . . Installed . | . . . . . Triggered . | . . . . . Machines | -11 -10 -10 -10 -9 ---------- Run | Yrd Mat Min Exi Min Machines Disabled . | . . . . . Max in Single Turn . | . . . . . Machines Repaired . | . . . . . Machines Dismantled . | . . . . . Machines Sabotaged . | . . . . . Overloaded Fab Kills . | . . . . . Hacking | -11 -10 -10 -10 -9 --------- Run | Yrd Mat Min Exi Min Machines Accessed 4 | . 3 . 1 . Terminals 3 | . 3 . . . Fabricators . | . . . . . Repair Stations . | . . . . . Recycling Units . | . . . . . Scanalyzers . | . . . . . Garrison Access . | . . . . . Total Hacks 10 | . 9 . 1 . Successful 8 | . 7 . 1 . Failed 2 | . 2 . . . Catastrophic 1 | . 1 . . . Database Lockouts . | . . . . . Manual 8 | . 7 . 1 . Terminals 9 | . 9 . . . Fabricators . | . . . . . Repair Stations . | . . . . . Recycling Units . | . . . . . Scanalyzers . | . . . . . Garrison Access . | . . . . . Terminal Hacks 8 | . 7 . 1 . Record 1 | . 1 . . . Robot Analysis 2 | . 2 . . . Prototype ID Bank 1 | . 1 . . . Maintenance Status 1 | . 1 . . . Investigation Status 1 | . 1 . . . Hauler Manifests 1 | . 1 . . . Derelict Proto ID Bank 1 | . . . 1 . Fabricator Hacks . | . . . . . Repair Station Hacks . | . . . . . Recycling Unit Hacks . | . . . . . Scanalyzer . | . . . . . Garrison Access Hacks . | . . . . . Unauthorized Hacks . | . . . . . Terminals . | . . . . . Fabricators . | . . . . . Repair Stations . | . . . . . Recycling Units . | . . . . . Scanalyzers . | . . . . . Garrison Access . | . . . . . Data Cores Recovered . | . . . . . Used . | . . . . . Hacking Detections 3 | . 3 . . . Full Trace Events . | . . . . . Feedback Events . | . . . . . Feedback Blocked . | . . . . . Robot Schematics Acquired . | . . . . . Robots Built . | . . . . . Authchips . | . . . . . Time . | . . . . . Total Robot Build Rating . | . . . . . Part Schematics Acquired . | . . . . . Parts Built . | . . . . . Authchips . | . . . . . Time . | . . . . . Total Part Build Rating . | . . . . . Parts Repaired . | . . . . . Time . | . . . . . Parts Recycled . | . . . . . Recycled Matter . | . . . . . Retrieved Matter . | . . . . . Retrieved Components . | . . . . . Parts Scanalyzed . | . . . . . Part Schematics Acquired . | . . . . . Parts Damaged . | . . . . . Bothacking | -11 -10 -10 -10 -9 ------------ Run | Yrd Mat Min Exi Min Used RIF Installer . | . . . . . Robots Hacked . | . . . . . Non-combat . | . . . . . Combat . | . . . . . Robot Hacks Applied . | . . . . . Relay Couplers Released . | . . . . . Fabnet Peak Effective % . | . . . . . Robots Rewired . | . . . . . Allies Hacked . | . . . . . Hacks Repelled . | . . . . . Allies | -11 -10 -10 -10 -9 -------- Run | Yrd Mat Min Exi Min Total Allies 3 | . . 3 . . Largest Group 3 | . . 3 1 1 Highest-Rated Group 40 | . . 40 16 16 Highest-Rated Ally 16 | . . 16 16 16 Total Orders . | . . . . . Ally Attacks 27 | . . 27 . . Total Damage 288 | . . 288 . . Kills 6 | . . 6 . . Allies Corrupted . | . . . . . Allies Melted . | . . . . . Intel | -11 -10 -10 -10 -9 ------- Run | Yrd Mat Min Exi Min Robot Analysis Total 2 | . 2 . . . Derelict Logs Recovered 2 | . . 1 . 1 Drone Launches . | . . . . . Drone Recoveries . | . . . . . Exploration | -11 -10 -10 -10 -9 ------------- Run | Yrd Mat Min Exi Min Turns Passed 3652 | 84 1605 1258 452 253 Spaces Moved 1819 | 62 749 648 238 122 Core 6 | 6 . . . . Treads . | . . . . . Legs 1813 | 56 749 648 238 122 Wheels . | . . . . . Hover . | . . . . . Flight . | . . . . . Fastest Speed 50 | 50 120 190 190 190 Average Speed 185 | 113 185 190 190 190 Slowest Speed 260 | 120 190 260 190 190 Overloaded Moves . | . . . . . Propulsion Burnouts . | . . . . . Robots Hopped . | . . . . . Cave-ins Triggered . | . . . . . Exploration Rate (%) 55 | 4 73 95 61 44 Regions Visited 4 Branch Regions 3 Pre-discovered Areas 1 | . . 1 . . Known Exits Taken . | . . . . . Unknown Exits Taken 4 | 1 1 1 1 . Scrap Searched 3 | . . 3 . . Spaces Dug . | . . . . . Terrain Destroyed 5 | . . . . 5 Melee . | . . . . . Projectile . | . . . . . AOE 5 | . . . . 5 Terrain Rammed . | . . . . . Walls Destroyed . | . . . . . Machines Disabled . | . . . . . Actions | -11 -10 -10 -10 -9 --------- Run | Yrd Mat Min Exi Min Total 1958 | 72 848 665 239 134 Wait 11 | . 10 1 . . Move 1815 | 61 748 647 237 122 Hop . | . . . . . Pick Up 20 | 2 11 4 1 2 Fast Attach 7 | 6 1 . . . Attach 2 | . . 2 . . Detach . | . . . . . Swap 6 | . 5 . . 1 Drop 7 | . 2 2 1 2 Fire 69 | . 60 3 . 6 Melee . | . . . . . Ram . | . . . . . Kick 21 | 3 11 6 . 1 Crush . | . . . . . Escape Stasis . | . . . . . Rewire . | . . . . . Trap . | . . . . . Miscellaneous . | . . . . . Route ------- -11/Scrapyard -10/Materials (discovered 3 exits: [*Mat x2] / [*Min]) -10/Mines (discovered 3 exits: [*Mat x2] / *Exi) -10/Exiles -9/Mines History --------- Turn | Location | Event 30 | -11/Scrapyard | Discovered new exit (range 15) 85 | -11/Scrapyard | Entered Materials 311 | -10/Materials | Build established: Mutant 390 | -10/Materials | Discovered new exit (range 16) 1259 | -10/Materials | Discovered new exit (range 7) 1403 | -10/Materials | Core integrity fell below 50% 1422 | -10/Materials | Discovered new exit (range 15) 1690 | -10/Materials | Entered Mines 1791 | -10/Mines | Assisted by bots powering up and referring to "LRC-V3" 2069 | -10/Mines | Received a Rocket Launcher from a helpful Derelict 2271 | -10/Mines | Discovered new exit (range 14) 2319 | -10/Mines | Learned location of Zion (-6) 2842 | -10/Mines | Discovered new exit (range 9) 2935 | -10/Mines | Deemed a non-threat by the Exiles lab entrance 2937 | -10/Mines | Discovered new exit (range 5) 2948 | -10/Mines | Entered Exiles 2948 | -10/Exiles | Accompanied by 1 ally 2996 | -10/Exiles | Met 8R-AWN 3026 | -10/Exiles | Met EX-HEX 3095 | -10/Exiles | Met EX-BIN 3123 | -10/Exiles | Aligned with FarCom system 3125 | -10/Exiles | Given EX-Vault access code 3178 | -10/Exiles | Opened EX-Vault 3196 | -10/Exiles | Found Field Lobotomy Kit 3235 | -10/Exiles | Warned to stay clear of 0b10 Research branches 3300 | -10/Exiles | Met EX-DEC 3362 | -10/Exiles | Discovered new exit (range 14) 3400 | -10/Exiles | Left Exiles lab with Field Lobotomy Kit 3400 | -10/Exiles | Entered Mines 3400 | -9/Mines | Accompanied by 1 ally 3462 | -9/Mines | Assembled infested the area 3556 | -9/Mines | YI-UF0 nonchalantly dropped a Grenade Launcher on the ground 3578 | -9/Mines | Learned Materials trap positions 3611 | -9/Mines | Core integrity fell below 20% 3653 | -9/Mines | Destroyed by as-85153 with Assembled Heavy Rifle Last Messages --------------- 03538_ K-01 Serf collects debris. 03556_ YI-UF0 nonchalantly drops a Grenade Launcher on the ground. 03556_ K-01 Serf collects debris. 03556_ Dropped Aluminum Leg. 03557_ Acquired Aluminum Leg. 03558_ YI-UF0 mumbles something. 03560_ K-01 Serf collects debris. 03565_ Dropped Aluminum Leg. 03566_ Acquired Grenade Launcher. 03578_ Acquired derelict log, extracted data. Data stored: Materials trap records. 03598_ K-01 Serf destroyed. 03604_ as-79633 destroyed. 03608_ Destroyed Asb. Hover Unit. 03610_ as-76064 destroyed. 03644_ Acquired 3 matter. 03647_ Acquired 1 matter. 03651_ Aluminum Leg destroyed. [Achievement: Achiever] Map ----- +----------------------------------------------------+ | ???????????????????????????????????? | | ???????????????????????????????????? | | ???????????????????????????????????? | | ???????????????????????????????????? | | ???????????????????????????????????? | | ???????????????????????????????????? | | ???????????????????????????????????? | | ###????????????????????????????????? | | #######????????????????????????#?? | | #####??????????????????? #?? | | % ## ##""###????????????? #?? | | ### # X #????????????? #?? | | ##?# ## ##???????????# #?? | | ##??# ### ##?????????# a#?? | | #???# #?######## ##??????##%*a#?? | | ????# #????????## = ##????# =! #?? | | ????# ?????????### #####! a #?? | | ????###???????????## %! #?? | | ???????????????????## | % #?? | | ????????????????????###### ##?? | | ????????????????????????## #?? | | ????????????????????????# aa ##?? | | ????????????????????????# #?? | | ???????????????????????## #?? | | ???????????###########?# a ##?? | | ??????????## ### @#######??? | | ??????????# ##????????? | | ??????????# ##?????????? | | ??????????## ######??????????? | | ???????????## ##???????????????? | | ????????????# #????????????????? | | ????????????# #????????????????? | | ????????????## ##????????????????? | | ?????????????####??????????????????? | | ???????????????????????????????????? | | ???????????????????????????????????? | | ???????????????????????????????????? | | ???????????????????????????????????? | | | | | | | | | | | | | | | | | | | | | | | | | +----------------------------------------------------+ Best States ------------- Heat Dissipation 25 Energy Generation 10 Energy Capacity 250 Matter Stores 300 Matter Capacity 300 Sight Range 16 Terrain Scan Density 10 Evasion (%) 55 Item Schematics ----------------- None Robot Schematics ------------------ None Fabricated ------------ Nothing Alien Tech Used ----------------- None Achievements -------------- Achiever root@ Challenges ------------ None Game ------ Seed ArmoredDecoderAmplifier Manual? 0 Play Time 00:14:50 Cumulative 21.5 hours Start 2024.07.16 @ 15:16:24 End 2024.07.16 @ 15:39:22 Sessions 1 Manual Loads 0 Difficulty Rogue Special Mode None Game No. 43 Rogue 43 Adventurer 0 Explorer 0 Win Type - Total 0 Types 0/0/0/0/0/0/0/0/0 Lore% 24 Gallery% 30 Achievement% 25 Wizard Run 0 Options --------- Layout 1 ASCII 0 Keyboard 0 Movement Arrows Keybinds 0 Fullscreen 1 Font 32/SmallcapsGlow Map View 50x35 Zoom Use 0% Tactical HUD 1 Map Filters NONE Filters NONE Steam 1 RUN: ffdc4776-e1d9-4f02-a8c6-da33eb036dbc